Cogmind - Beta 13 @@@ ROGUE MODE // 2024.05.18 @ 22:13:57 Player: Bace Troncons Result: Destroyed by H-71 Marshal with Heavy Mass Driver Performance ------------- Evolutions (5) 2500 Regions Visited (7) 1400 Robots Destroyed (31) 155 Value Destroyed (517) 517 Prototype IDs (10) 200 Alien Tech Used (0) 0 Bonus (0) 0 TOTAL SCORE: 4772 Bonus ------- None Cogmind --------- Core Integrity 0/1000 Matter 189/300 Energy 100/100 System Corruption 8% Temperature Cool (0) Movement Core (100) Ox1 Location -5/Factory Parts ------- > --- POWER (2) -------- (None) > --- PROPULSION (5) --- (None) > --- UTILITY (6) ------ Power Shielding Power Shielding Improved Utility Shielding System Shield > --- WEAPON (4) ------- (None) > --- INVENTORY (5) ---- Light Nuclear Core Faulty Enhanced Nuclear Core Enhanced Nuclear Core Compact Wheel Compact Wheel Peak State ------------ > --- POWER ------------ Light Nuclear Core Enhanced Nuclear Core > --- PROPULSION ------- Wheeled VTOL-Compact Exoskeleton Compact Wheel Compact Wheel Compact Wheel > --- UTILITY ---------- Armored Scrap Engine Power Shielding Power Shielding Improved Thermal Shield System Shield > --- WEAPON ----------- Ballistic Driver Construct/G > --- INVENTORY -------- (None) [Rating: 53] Favorites ----------- Power Light Ion Engine Engine Light Ion Engine Power Core Constructs Propulsion Constructs Treads Light Treads Wheel Constructs Flight Unit Improved Flight Unit Utility Armored Scrap Engine Device Armored Scrap Engine Storage Small Storage Unit Processor Signal Interpreter Hackware System Shield Protection Power Shielding Weapon Improved Assault Rifle Energy Gun Constructs Ballistic Gun Improved Assault Rifle Ballistic Cannon Light Cannon Launcher Improved Proton Missile Launcher Impact Weapon Makeshift Hammer Build | -11 -10 -10 -8 -6 -6 -6 -5 ------- Run | Yrd Mat Sub Rec Fac Low Low Fac Slots Evolved 10 | . . . . 8 . . 2 Power 1 | . . . . 1 . . . Propulsion 3 | . . . . 3 . . . Utility 4 | . . . . 4 . . . Weapon 2 | . . . . . . . 2 Parts Attached 49 | 8 12 1 1 5 1 1 20 Power 8 | 1 3 1 . . . . 3 Engine 5 | 1 3 1 . . . . . Core 3 | . . . . . . . 3 Reactor . | . . . . . . . . Propulsion 12 | 2 3 . . . . . 7 Treads 3 | 2 1 . . . . . . Leg . | . . . . . . . . Wheel 7 | . . . . . . . 7 Hover . | . . . . . . . . Flight 2 | . 2 . . . . . . Utility 18 | 3 2 . 1 5 1 . 6 Device 10 | 2 1 . 1 2 1 . 3 Storage 1 | 1 . . . . . . . Processor 2 | . 1 . . 1 . . . Hackware 2 | . . . . 2 . . . Protection 3 | . . . . . . . 3 Artifact . | . . . . . . . . Weapon 11 | 2 4 . . . . 1 4 Energy Gun 3 | 1 . . . . . . 2 Energy Cannon . | . . . . . . . . Ballistic Gun 5 | 1 3 . . . . . 1 Ballistic Cannon 1 | . 1 . . . . . . Launcher 1 | . . . . . . . 1 Special Weapon . | . . . . . . . . Impact Weapon 1 | . . . . . . 1 . Slashing Weapon . | . . . . . . . . Piercing Weapon . | . . . . . . . . Special Melee Weapon . | . . . . . . . . Unidentified Prototypes 3 | . 2 . . . . . 1 Parts Lost 32 | . . 2 . 8 . 1 21 Power 4 | . . 2 . 1 . . 1 Propulsion 9 | . . . . . . . 9 Utility 10 | . . . . 4 . 1 5 Weapon 9 | . . . . 3 . . 6 Highest Loss Streak 8 | . . 2 . 8 . 1 8 To Critical Strikes 2 | . . . . . . . 2 Average Slot Usage (%) 58 | . 98 99 57 40 23 29 40 Engine 4 | . 14 13 . 4 . . . Treads 3 | . 7 . 5 . . . . Wheel 1 | . . . . . . 2 7 Hover 1 | . . . . . 4 3 2 Flight 7 | . 20 28 4 . . . . Device 11 | . 14 14 14 12 9 11 9 Storage 1 | . 3 . . . . . . Processor 3 | . 8 14 . 3 . . . Hackware 2 | . . . . 5 6 6 5 Protection 1 | . . . . . . . 6 Energy Gun 1 | . 1 . . . . . 2 Ballistic Gun 9 | . 21 14 14 2 . . . Ballistic Cannon 3 | . 4 14 14 2 . . . Naked Turns . | . . . . . . . . Heaviest Build 30 | 15 15 10 15 17 6 9 30 Greatest Support 85 | 40 40 10 10 8 15 26 85 Greatest Overweight (x) 3 | . . . 2 2 . . 3 Average Overweight (x) . | . . . . . . . . Largest Inventory Capacity 8 | 8 8 5 5 5 5 5 5 Average Capacity 5 | 7 5 5 5 5 5 5 5 Most Carried 8 | 4 8 5 5 3 . 1 5 Average Carried 2 | 2 5 4 4 . . . 1 Final Capacity 8 | 8 5 5 5 5 5 5 5 Final Carried 5 | 4 5 5 4 . . . 5 Scrap Engine Consumption 56 | . . . 18 5 . 2 31 Constructs Created 6 | . . . 2 1 . . 3 Constructs Modified 11 | . . . 3 . 1 1 6 Class Distribution -------------------- 87% | Mutant 11% | Construct Dominant Class ---------------- Mutant | -10/Materials Mutant | -10/Subcaves Construct | -8/Recycling Skirmisher | -6/Factory Mutant | -6/Lower Caves Mutant | -6/Lower Caves Mutant | -5/Factory Resources | -11 -10 -10 -8 -6 -6 -6 -5 ----------- Run | Yrd Mat Sub Rec Fac Low Low Fac Matter Collected 865 | 207 476 54 24 1 48 10 45 Remotely . | . . . . . . . . Salvage Created 808 | 46 553 44 . . . . 165 Parts 66 | 10 43 4 . . . . 9 Haulers Intercepted 2 | . 2 . . . . . . Recyclers Shooed . | . . . . . . . . Parts Field Recycled . | . . . . . . . . Retrieved Matter . | . . . . . . . . Parts Self-Destructed 11 | . . 7 . . 3 1 . Prevented . | . . . . . . . . Kills | -11 -10 -10 -8 -6 -6 -6 -5 ------- Run | Yrd Mat Sub Rec Fac Low Low Fac Combat Hostiles Destroyed 20 | . 13 3 . . . . 4 Melee 1 | . . . . . . . 1 Guns 17 | . 13 2 . . . . 2 Cannons 1 | . . 1 . . . . . Classes Destroyed 7 | 1 6 . . . . . . Tunneler 3 | 3 . . . . . . . Hauler 2 | . 2 . . . . . . Recycler 1 | . 1 . . . . . . Operator 1 | . 1 . . . . . . Watcher 4 | . 3 . . . . . 1 Swarmer 15 | . 9 3 . . . . 3 Grunt 5 | . 4 . . . . . 1 Best Kill Streak 6 | 3 6 3 . . . . 2 Combat Bots Only 3 | . 3 3 . . . . 2 Max Kills in Single Turn 2 | 1 2 1 . . . . 1 Gunslinging 1 | . 1 . . . . . . Exploded . | . . . . . . . . Melee 1 | . . . . . . . 1 Uniques/NPCs Destroyed . | . . . . . . . . Combat | -11 -10 -10 -8 -6 -6 -6 -5 -------- Run | Yrd Mat Sub Rec Fac Low Low Fac Hostile Shots Fired 484 | . 42 59 . 82 5 51 245 Missed 169 | . 16 29 . 32 4 15 73 Damage Taken 5316 | . 238 323 . 1022 18 585 3130 Core 1707 | . 33 48 . 273 18 284 1051 Absorbed by Shields . | . . . . . . . . Redirected to Shielding 119 | . . . . . . . 119 Regen/Repaired (Parts) 466 | . 9 . . 20 58 58 321 Core Remaining (%) 66 | 100 . . 67 . . 32 . Volleys Fired 90 | 6 53 7 2 12 . . 10 Largest 2 | 2 2 2 2 2 . . 2 Hottest 108 | 60 60 58 58 92 . . 108 Shots Fired 160 | 8 104 14 4 18 . . 12 Gun 131 | 8 104 7 2 . . . 10 Cannon 27 | . . 7 2 18 . . . Launcher 2 | . . . . . . . 2 Special . | . . . . . . . . Kinetic 135 | 6 97 14 4 6 . . 8 Thermal 12 | . . . . 12 . . . Explosive . | . . . . . . . . Electromagnetic 13 | 2 7 . . . . . 4 Robot Hit Streak 15 | 7 15 6 . 6 . . 4 Robot Miss Streak 7 | 1 7 6 . 7 . . 1 Penetration Max . | . . . . . . . . Secondary Targets 1 | . 1 . . . . . . Max Gunslinging Chain 1 | . 1 . . . . . . Shots Hit Robots 93 | 7 61 5 . 9 . . 11 Core Hits 42 | 3 25 3 . 4 . . 7 Critical Kills . | . . . . . . . . Critical Parts Destroyed . | . . . . . . . . Critical Strikes . | . . . . . . . . Melee Attacks 7 | . . . . . . . 7 Impact 7 | . . . . . . . 7 Slashing . | . . . . . . . . Piercing . | . . . . . . . . Sneak Attacks . | . . . . . . . . Combat Hostiles . | . . . . . . . . Follow-up Attacks . | . . . . . . . . Damage Inflicted 1745 | 91 829 82 . 175 . . 568 Guns 1103 | 91 829 44 . . . . 139 Cannons 210 | . . 38 . 172 . . . Explosions 236 | . . . . . . . 236 Melee 158 | . . . . . . . 158 Ramming 38 | . . . . 3 . . 35 Kinetic 1141 | 76 795 82 . 72 . . 116 Thermal 100 | . . . . 100 . . . Explosive . | . . . . . . . . Electromagnetic 308 | 15 34 . . . . . 259 Impact 158 | . . . . . . . 158 Slashing . | . . . . . . . . Piercing . | . . . . . . . . Highest Corruption 8 | . . . 1 . . . 8 Average Corruption 5 | . . . 1 . . . 6 Corruption Purged . | . . . . . . . . Corruption Blocked . | . . . . . . . . Effects 14 | . . . 1 . . . 13 Message Errors 4 | . . . . . . . 4 Matter Fused 4 | . . . . . . . 4 Heat Flow Errors 1 | . . . . . . . 1 Energy Discharges 4 | . . . . . . . 4 Alerts 1 | . . . 1 . . . . Overload Shots . | . . . . . . . . Overflow Damage 35 | . . . . . . . 35 Projectiles . | . . . . . . . . Explosions 22 | . . . . . . . 22 Melee 13 | . . . . . . . 13 Knockbacks 3 | . . . . 2 . . 1 Impact 1 | . . . . . . . 1 Kinetic 2 | . . . . 2 . . . Secondary . | . . . . . . . . Self-Inflicted Damage 70 | . . . . . . . 70 Shots 2 | . . . . . . . 2 Rammed 11 | . . . . . . . 11 Targets Rammed 13 | . . . . 2 . . 11 Kicked 2 | . . . . 2 . . . Crushed . | . . . . . . . . Highest Temperature 154 | . 3 . . 154 . . 104 Average Temperature 46 | . 2 . . 66 . . 30 Received Heat Transfer 840 | . 42 99 . 321 27 45 306 Siege Activations . | . . . . . . . . Robots Corrupted 1 | . . . . . . . 1 Combat Hostiles 1 | . . . . . . . 1 Parts Fried 4 | . . . . . . . 4 Impact Corruptions 1 | . . . . . . . 1 Robots Melted . | . . . . . . . . Combat Hostiles . | . . . . . . . . Parts Melted . | . . . . . . . . Heat Transferred 185 | . . . . 185 . . . Parts Sabotaged . | . . . . . . . . Parts Stolen . | . . . . . . . . Parts Stripped . | . . . . . . . . Power Chain Reactions . | . . . . . . . . Alert | -11 -10 -10 -8 -6 -6 -6 -5 ------- Run | Yrd Mat Sub Rec Fac Low Low Fac Peak Influence 273 | 15 273 . 216 161 . . 124 Initial 200 | . 9 . 200 156 . . 27 Average 118 | 4 145 . 165 129 . . 64 Maximum Alert Level 1 | . 1 . 1 . . . . Low Security (%) 72 | 100 69 . 20 100 . . 100 Level 1 27 | . 30 . 80 . . . . Level 2 . | . . . . . . . . Level 3 . | . . . . . . . . Level 4 . | . . . . . . . . Level 5 . | . . . . . . . . High Security . | . . . . . . . . Max Security . | . . . . . . . . Squads Dispatched 4 | . 2 . . . . . 2 Investigation . | . . . . . . . . Extermination . | . . . . . . . . Reinforcement 4 | . 2 . . . . . 2 Assault . | . . . . . . . . Garrison . | . . . . . . . . Intercept . | . . . . . . . . Searches Triggered . | . . . . . . . . Construction Impeded . | . . . . . . . . Haulers Reinforced 1 | . . . . . . . 1 Active Scanning Responses . | . . . . . . . . Cargo Convoy Interrupts . | . . . . . . . . Stealth | -11 -10 -10 -8 -6 -6 -6 -5 --------- Run | Yrd Mat Sub Rec Fac Low Low Fac Distress Signals 4 | . 2 . . . . . 2 Communications Jammed . | . . . . . . . . Distress Signals . | . . . . . . . . Times Spotted 100 | . 24 30 . 4 6 13 23 Peak Tracking Total 16 | . 4 10 . 4 4 16 8 Tactical Retreats 10 | . 1 3 . . 1 1 4 Traps | -11 -10 -10 -8 -6 -6 -6 -5 ------- Run | Yrd Mat Sub Rec Fac Low Low Fac Traps Triggered 1 | . . . . . . . 1 Indirectly . | . . . . . . . . Trap Hack Attempts . | . . . . . . . . Triggered . | . . . . . . . . Disarmed . | . . . . . . . . Reprogrammed . | . . . . . . . . Reused . | . . . . . . . . Traps Extracted . | . . . . . . . . Installed . | . . . . . . . . Triggered . | . . . . . . . . Machines | -11 -10 -10 -8 -6 -6 -6 -5 ---------- Run | Yrd Mat Sub Rec Fac Low Low Fac Machines Disabled 1 | . . . . . . . 1 Max in Single Turn 1 | . . . . . . . 1 Machines Repaired . | . . . . . . . . Machines Dismantled . | . . . . . . . . Machines Sabotaged . | . . . . . . . . Overloaded Fab Kills . | . . . . . . . . Hacking | -11 -10 -10 -8 -6 -6 -6 -5 --------- Run | Yrd Mat Sub Rec Fac Low Low Fac Machines Accessed 19 | . 8 . 8 1 . . 2 Terminals 11 | . 5 . 4 1 . . 1 Fabricators 1 | . . . . . . . 1 Repair Stations 1 | . 1 . . . . . . Recycling Units 6 | . 2 . 4 . . . . Scanalyzers . | . . . . . . . . Garrison Access . | . . . . . . . . Total Hacks 44 | . 17 . 20 2 . . 5 Successful 19 | . 9 . 7 2 . . 1 Failed 25 | . 8 . 13 . . . 4 Catastrophic 5 | . 1 . 3 . . . 1 Database Lockouts . | . . . . . . . . Manual 4 | . . . 3 1 . . . Terminals 27 | . 12 . 11 2 . . 2 Fabricators 3 | . . . . . . . 3 Repair Stations 2 | . 2 . . . . . . Recycling Units 12 | . 3 . 9 . . . . Scanalyzers . | . . . . . . . . Garrison Access . | . . . . . . . . Terminal Hacks 11 | . 5 . 4 2 . . . Record 4 | . . . 2 2 . . . Robot Analysis 1 | . 1 . . . . . . Prototype ID Bank 2 | . 1 . 1 . . . . Locate Traps 1 | . 1 . . . . . . Hauler Manifests 2 | . 1 . 1 . . . . Zone Layout 1 | . 1 . . . . . . Fabricator Hacks 1 | . . . . . . . 1 Build 1 | . . . . . . . 1 Repair Station Hacks 2 | . 2 . . . . . . Scan Component 1 | . 1 . . . . . . Repair 1 | . 1 . . . . . . Recycling Unit Hacks 5 | . 2 . 3 . . . . Retrieve Components 5 | . 2 . 3 . . . . Scanalyzer . | . . . . . . . . Garrison Access Hacks . | . . . . . . . . Unauthorized Hacks . | . . . . . . . . Terminals . | . . . . . . . . Fabricators . | . . . . . . . . Repair Stations . | . . . . . . . . Recycling Units . | . . . . . . . . Scanalyzers . | . . . . . . . . Garrison Access . | . . . . . . . . Data Cores Recovered . | . . . . . . . . Used . | . . . . . . . . Hacking Detections 13 | . 4 . 7 1 . . 1 Full Trace Events 3 | . . . 3 . . . . Feedback Events 1 | . . . 1 . . . . Corruption 1 | . . . 1 . . . . Feedback Blocked . | . . . . . . . . Robot Schematics Acquired . | . . . . . . . . Robots Built . | . . . . . . . . Authchips . | . . . . . . . . Time . | . . . . . . . . Total Robot Build Rating . | . . . . . . . . Part Schematics Acquired . | . . . . . . . . Parts Built 2 | . . . . . . . 2 Authchips . | . . . . . . . . Time 53 | . . . . . . . 53 Total Part Build Rating 12 | . . . . . . . 12 Parts Repaired 1 | . 1 . . . . . . Time 32 | . 32 . . . . . . Parts Recycled . | . . . . . . . . Recycled Matter . | . . . . . . . . Retrieved Matter . | . . . . . . . . Retrieved Components 18 | . 16 . 2 . . . . Parts Scanalyzed . | . . . . . . . . Part Schematics Acquired . | . . . . . . . . Parts Damaged . | . . . . . . . . Bothacking | -11 -10 -10 -8 -6 -6 -6 -5 ------------ Run | Yrd Mat Sub Rec Fac Low Low Fac Used RIF Installer . | . . . . . . . . Robots Hacked . | . . . . . . . . Non-combat . | . . . . . . . . Combat . | . . . . . . . . Robot Hacks Applied . | . . . . . . . . Relay Couplers Released . | . . . . . . . . Fabnet Peak Effective % . | . . . . . . . . Robots Rewired . | . . . . . . . . Allies Hacked . | . . . . . . . . Hacks Repelled . | . . . . . . . . Allies | -11 -10 -10 -8 -6 -6 -6 -5 -------- Run | Yrd Mat Sub Rec Fac Low Low Fac Total Allies . | . . . . . . . . Largest Group . | . . . . . . . . Highest-Rated Group . | . . . . . . . . Highest-Rated Ally . | . . . . . . . . Total Orders . | . . . . . . . . Ally Attacks . | . . . . . . . . Total Damage . | . . . . . . . . Kills . | . . . . . . . . Allies Corrupted . | . . . . . . . . Allies Melted . | . . . . . . . . Intel | -11 -10 -10 -8 -6 -6 -6 -5 ------- Run | Yrd Mat Sub Rec Fac Low Low Fac Robot Analysis Total 1 | . 1 . . . . . . Derelict Logs Recovered . | . . . . . . . . Drone Launches . | . . . . . . . . Drone Recoveries . | . . . . . . . . Exploration | -11 -10 -10 -8 -6 -6 -6 -5 ------------- Run | Yrd Mat Sub Rec Fac Low Low Fac Turns Passed 3944 | 113 1156 155 500 148 901 177 794 Spaces Moved 3167 | 55 971 198 497 70 664 168 544 Core 93 | 5 . . 18 . . . 70 Treads 401 | 50 160 . 191 . . . . Legs 198 | . . . 118 70 10 . . Wheels 416 | . . . . . . 70 346 Hover 880 | . . . . . 654 98 128 Flight 1179 | . 811 198 170 . . . . Fastest Speed 37 | 50 37 37 37 103 103 103 79 Average Speed 85 | 150 57 37 96 152 103 103 100 Slowest Speed 253 | 160 160 37 178 253 103 103 200 Overloaded Moves . | . . . . . . . . Propulsion Burnouts . | . . . . . . . . Robots Hopped 2 | . 2 . . . . . . Cave-ins Triggered . | . . . . . . . . Exploration Rate (%) 40 | 5 97 19 82 2 76 25 19 Regions Visited 7 Branch Regions 4 Pre-discovered Areas . | . . . . . . . . Known Exits Taken 2 | . 1 1 . . . . . Unknown Exits Taken 5 | 1 . . 1 1 1 1 . Scrap Searched 4 | . . 2 . . 1 1 . Spaces Dug 1 | . . . . . . . 1 Terrain Destroyed 1 | . . . . . . . 1 Melee 1 | . . . . . . . 1 Projectile . | . . . . . . . . AOE . | . . . . . . . . Terrain Rammed . | . . . . . . . . Walls Destroyed . | . . . . . . . . Machines Disabled . | . . . . . . . . Actions | -11 -10 -10 -8 -6 -6 -6 -5 --------- Run | Yrd Mat Sub Rec Fac Low Low Fac Total 4238 | 74 1473 265 518 91 880 171 766 Wait 861 | 2 403 59 8 3 216 2 168 Move 3156 | 54 966 197 496 69 663 167 544 Hop 2 | . 2 . . . . . . Pick Up 22 | 3 15 1 2 . . 1 . Fast Attach 38 | 8 7 . 1 1 1 . 20 Attach 10 | . 4 1 . 4 . 1 . Detach 14 | 1 5 . 3 . . . 5 Swap 1 | . 1 . . . . . . Drop 24 | . 17 . 6 . . . 1 Fire 90 | 6 53 7 2 12 . . 10 Melee 7 | . . . . . . . 7 Ram 11 | . . . . . . . 11 Kick 2 | . . . . 2 . . . Crush . | . . . . . . . . Escape Stasis . | . . . . . . . . Rewire . | . . . . . . . . Trap . | . . . . . . . . Miscellaneous . | . . . . . . . . Route ------- -11/Scrapyard -10/Materials (discovered 6 exits: *Mat x3 / [*Min x2] / *Sub) -10/Subcaves -8/Recycling -6/Factory -6/Lower Caves -6/Lower Caves -5/Factory History --------- Turn | Location | Event 24 | -11/Scrapyard | Discovered new exit (range 15) 114 | -11/Scrapyard | Entered Materials 300 | -10/Materials | Build established: Mutant 582 | -10/Materials | Discovered new exit (range 15) 667 | -10/Materials | Identified exit to Materials 686 | -10/Materials | Discovered new exit (range 11) 745 | -10/Materials | Discovered exit to Materials (range 11) 832 | -10/Materials | Discovered new exit (range 16) 871 | -10/Materials | Discovered exit to Materials (range 16) 939 | -10/Materials | Repaired VTOL Module 1251 | -10/Materials | Discovered new exit (range 3) 1269 | -10/Materials | Identified exit to Subcaves 1270 | -10/Materials | Entered Subcaves 1340 | -10/Subcaves | A Subdweller sparked back to life 1340 | -10/Subcaves | A Subdweller sparked back to life 1340 | -10/Subcaves | A Subdweller sparked back to life 1418 | -10/Subcaves | Discovered new exit (range 15) 1425 | -10/Subcaves | Identified exit to Recycling 1425 | -10/Subcaves | Entered Recycling 1426 | -8/Recycling | Found Scrap Engine 1791 | -8/Recycling | Build established: Construct 1900 | -8/Recycling | Discovered new exit (range 16) 1925 | -8/Recycling | Entered Factory 1925 | -6/Factory | Evolved 8 slots: Power x1, Propulsion x3, Utility x4 2047 | -6/Factory | Discovered new exit (range 15) 2065 | -6/Factory | Lost 8 parts (1p4u3w) 2073 | -6/Factory | Entered Lower Caves 2302 | -6/Lower Caves | Build established: Mutant 2933 | -6/Lower Caves | Discovered new exit (range 12) 2974 | -6/Lower Caves | Entered another Lower Caves area 3019 | -6/Lower Caves | Discovered new exit (range 15) 3123 | -6/Lower Caves | Attracted the attention of an 0b10 base 3133 | -6/Lower Caves | Core integrity fell below 50% 3151 | -6/Lower Caves | Entered Factory 3151 | -5/Factory | Evolved 2 slots: Weapon x2 3780 | -5/Factory | Fabricated Point Defense System? 3788 | -5/Factory | Core integrity fell below 50% 3798 | -5/Factory | Lost 8 parts (1p3n1u3w) 3912 | -5/Factory | Core integrity fell below 20% 3945 | -5/Factory | Destroyed by H-71 Marshal with Heavy Mass Driver Last Messages --------------- 03899_ Triggered Proton Bomb Trap. 03899_ A bubble of electromagnetic force engulfs the area. 03899_ Proton Bomb Trap short circuited. 03899_ A bubble of electromagnetic force engulfs the area. 03899_ KE Penetrator destroyed. 03901_ Slammed into T-07 Excavator. 03908_ System corrupted: Energy discharge (-35). 03908_ Wheel destroyed. 03925_ System corrupted: Energy discharge (-33). 03926_ Wheel destroyed. 03926_ Imp. Reaction Control System destroyed. 03926_ Knocked back. 03937_ Imp. Reaction Control System destroyed. 03941_ Subcomponent Replicator disabled. 03943_ System corrupted: Matter fused (-7). 03943_ Wave Gun destroyed. 03943_ Knocked back. 03945_ Slug penetrates Wall. Map ----- +----------------------------------------------------+ | ???????????????????????????????????????? | | ???????????????????????????????????????? | | ???????????????????????????????????????? | | ???????????????????????????????????????? | | ???????????????????????????????????????? | | ???????????????????????????????????????? | | ???????????????????????????????????????? | | ???????????????????????????????????????? | | ???????????? ????????????????????????? | | ???????????? ????????????????????????? | | ???????????? ????????????????????????? | | ???????????# #???????????????????????? | | ???????????# #???????????????????????? | | ???????????# #???????????????????????? | | ???????????# ##??????????????????????? | | ??####????? ???????????????????????? | | ??# ?????? ???????????????????????? | | ??# ?????? ???????????????????????? | | ??# ?????? ????????????????????????? | | ??# #????? ????????????????????????? | | ??# #?????# #????????????????????????? | | ??# #?????# #????????????????????????? | | ??# #????##H#????????????????????????? | | ??# ######;;;#####???????????????????? | | ??# ## % #???????????????????? | | ?## ## gb @ #???????????????????? | | ?# # #???????????????????? | | ?# # """ #???????????????????? | | ?# T + % """" #???????????????????? | | ?# # """"" #???????????????????? | | ?# # #???????????????????? | | ?### ###############????????#######+###? | | ???# #??????????????????????# #? | | ???# ######################## "" #? | | ???# + """#? | | ???# ############### R"#? | | ???# """ #?????????????# """#? | | ???# "T" #?????????????# #? | | ???# #?????????????# """" #? | | ???# #?????????????# """" +? | | ???# #?????????????# """" #? | | ???# """ #?????????????# """" #? | | ???# """ #?????????????# """" #? | | ???# """ #?????????????# """" #? | | ???# #?????????????# """" #? | | ???# #?????????????# #? | | ???# #?????????????# #? | | ????######### #?????????????# ## | | ????????????? #?????????????###+######## | | ????????????? ????????????????# ## # | +----------------------------------------------------+ Best States ------------- Heat Dissipation 40 Energy Generation 26 Energy Capacity 360 Matter Stores 300 Matter Capacity 300 Sight Range 16 Robot Scan Range 14 Terrain Scan Range 16 Terrain Scan Density 10 Power Shielding 33 Utility Shielding 66 Evasion (%) 62 Recoil Reduction 2 Offensive Hacking 10 Defensive Hacking 10 Item Schematics ----------------- None Robot Schematics ------------------ None Fabricated ------------ Point Defense System | x2 | -5/Factory | Preloaded Alien Tech Used ----------------- None Achievements -------------- None Challenges ------------ None Game ------ Seed CoreModifiedSubcomponent Manual? 0 Play Time 00:49:38 Cumulative 81.1 hours Start 2024.05.18 @ 20:55:38 End 2024.05.18 @ 22:13:57 Sessions 1 Manual Loads 0 Difficulty Rogue Special Mode None Game No. 127 Rogue 127 Adventurer 0 Explorer 0 Win Type - Total 1 Types 1/0/0/0/0/0/0/0/0 Lore% 40 Gallery% 43 Achievement% 32 Wizard Run 0 Options --------- Layout 1 ASCII 0 Keyboard 1 Movement Numpad Keybinds 0 Fullscreen 1 Font 24/Smallcaps Map View 50x35 Zoom Use 0% Tactical HUD 1 Map Filters NONE Filters NONE Steam 1 RUN: 883b1c0e-3c11-42fd-8ccb-50a00aa43989